fUST/lending_fUST_20250725
["ID","MTS","AMOUNT","RATE_DAILY","PERIOD"]
[374626348,1753385447794,-460.0,0.00020723,2]
[374626349,1753385447805,-2379.26,0.00020723,2]
[374626350,1753385447815,-460.0,0.00020723,2]
[374626351,1753385447824,-713.28,0.00020723,2]
[374626352,1753385447833,-460.0,0.00020723,2]
[374626353,1753385447935,-460.0,0.00020723,2]
[374626354,1753385447944,-2046.78,0.00020723,2]
[374626355,1753385447954,-1767.26,0.00020723,2]
[374626356,1753385447963,-1427.87,0.00020723,2]
[374626357,1753385447974,-1965.0,0.00020723,2]
[374626358,1753385447983,-970.59,0.00020723,2]
[374626359,1753385447993,-460.0,0.00020723,2]
[374626360,1753385448004,-2798.30460564,0.00020728,3]
[374626361,1753385448014,-1500.0,0.00020768,2]
[374626362,1753385448023,-500.0,0.00020768,2]
[374626363,1753385448034,-160.0,0.00020769,2]
[374626364,1753385448043,-500.0,0.00020773,2]
[374626365,1753385448054,-160.11934557,0.00020773,2]
[374626366,1753385448063,-500.35759823,0.00020773,2]
[374626367,1753385448073,-500.69980759,0.00020773,2]
[374626368,1753385448082,-160.0,0.00020792,2]
[374626369,1753385448092,-160.0,0.00020792,2]
[374626370,1753385448101,-160.0,0.00020792,2]
[374626371,1753385448111,-231.16387093,0.00020792,2]
[374626372,1753385448123,-160.0,0.00020792,2]
[374626373,1753385448133,-215.88777038,0.00020792,2]
[374626374,1753385448142,-526.24749348,0.00020792,2]
[374626375,1753385448151,-840.23756827,0.00020792,2]
[374626376,1753385448162,-160.0,0.00020792,2]
[374626377,1753385448171,-160.0,0.00020793,2]
[374626378,1753385448181,-12624.810388,0.00020793,2]
[374626379,1753385448191,-160.0,0.00020793,2]
[374626380,1753385448201,-476.79463412,0.00020793,2]
[374626381,1753385448211,-214.7213231,0.00020793,2]
[374626382,1753385448221,-160.0,0.00020793,2]
[374626383,1753385448230,-151.0,0.000208,3]
[374626384,1753385448239,-1000.0,0.00020894,2]
[374626385,1753385448249,-1000.0,0.00020894,2]
[374626386,1753385448258,-460.0,0.00020896,2]
[374626387,1753385448268,-460.0,0.00020896,2]
[374626388,1753385448278,-2798.30460564,0.00020934,4]
[374626389,1753385448288,-289.879289,0.00020997,2]
[374626390,1753385448298,-289.879289,0.00020997,2]
[374626391,1753385448307,-460.0,0.00020997,2]
[374626392,1753385448317,-460.0,0.00020997,2]
[374626393,1753385448326,-713.76,0.00020997,2]
[374626394,1753385448335,-460.0,0.00020997,2]
[374626395,1753385448345,-460.0,0.00020997,2]
[374626396,1753385448354,-460.0,0.00020997,2]
[374626397,1753385448364,-460.0,0.00020997,2]
[374626398,1753385448374,-460.0,0.00020997,2]
[374626399,1753385448383,-460.0,0.00020997,2]
[374626400,1753385448392,-460.0,0.00020997,2]
[374626401,1753385448402,-905.35,0.00020997,2]
[374626402,1753385448411,-460.0,0.00020997,2]
[374626403,1753385448421,-460.0,0.00020997,2]
[374626404,1753385448431,-460.0,0.00020997,2]
[374626405,1753385448440,-460.0,0.00020997,2]
[374626406,1753385448449,-460.0,0.00020997,2]
[374626407,1753385448459,-460.0,0.00020997,2]
[374626408,1753385448468,-460.0,0.00020997,2]
[374626409,1753385448478,-460.0,0.00020997,2]
[374626410,1753385448487,-777.87,0.00020997,2]
[374626411,1753385448497,-460.0,0.00020997,2]
[374626412,1753385448506,-460.0,0.00020997,2]
[374626413,1753385448515,-460.0,0.00020997,2]
[374626414,1753385448524,-460.0,0.00020997,2]
[374626415,1753385448533,-460.0,0.00020997,2]
[374626416,1753385448543,-534.68,0.00020997,2]
[374626417,1753385448552,-460.0,0.00020997,2]
[374626418,1753385448561,-683.5,0.00020997,2]
[374626419,1753385448571,-460.0,0.00020997,2]
[374626420,1753385448580,-551.1,0.00020997,2]
[374626421,1753385448589,-1715.33,0.00020997,2]
[374626422,1753385448598,-460.0,0.00020997,2]
[374626423,1753385448608,-460.0,0.00020997,2]
[374626424,1753385448617,-783.45,0.00020997,2]
[374626425,1753385448626,-460.0,0.00020997,2]
[374626426,1753385448636,-776.79,0.00020997,2]
[374626427,1753385448646,-2564.74,0.00020997,2]
[374626428,1753385448657,-463.65,0.00020997,2]
[374626429,1753385448666,-460.0,0.00020997,2]
[374626430,1753385448675,-460.0,0.00020997,2]
[374626431,1753385448685,-572.73,0.00020997,2]
[374626432,1753385448694,-1157.22,0.00020997,2]
[374626433,1753385448703,-460.0,0.00020997,2]
[374626434,1753385448712,-646.9,0.00020997,2]
[374626435,1753385448721,-1765.12,0.00020997,2]
[374626436,1753385448731,-1892.27,0.00020997,2]
[374626437,1753385448740,-620.12,0.00020997,2]
[374626438,1753385448749,-751.65,0.00020997,2]
[374626439,1753385448759,-460.0,0.00020997,2]
[374626440,1753385448768,-915.11,0.00020997,2]
[374626441,1753385448778,-582.72,0.00020997,2]
[374626442,1753385448788,-549.37,0.00020997,2]
[374626443,1753385448797,-460.0,0.00020997,2]
[374626444,1753385448807,-460.0,0.00020997,2]
[374626445,1753385448817,-460.0,0.00020997,2]
[374626446,1753385448826,-579.21,0.00020997,2]
[374626447,1753385448836,-504.21,0.00020997,2]
[374626448,1753385448845,-460.0,0.00020997,2]
[374626449,1753385448855,-766.2,0.00020997,2]
[374626450,1753385448864,-460.0,0.00020997,2]
[374626451,1753385448874,-556.18,0.00020997,2]
[374626452,1753385448884,-460.0,0.00020997,2]
[374626453,1753385448893,-962.62,0.00020997,2]
[374626454,1753385448903,-460.0,0.00020997,2]
[374626455,1753385448912,-460.0,0.00020997,2]
[374626456,1753385448922,-2148.38,0.00020997,2]
[374626457,1753385448931,-817.39,0.00020997,2]
[374626458,1753385448941,-460.0,0.00020997,2]
[374626459,1753385448951,-5357.72,0.00020997,2]
[374626460,1753385448961,-460.0,0.00020997,2]
[374626461,1753385448970,-754.21,0.00020997,2]
[374626462,1753385448980,-635.65,0.00020997,2]
[374626463,1753385448990,-460.0,0.00020997,2]
[374626464,1753385448999,-460.0,0.00020997,2]
[374626465,1753385449008,-728.76,0.00020997,2]
[374626466,1753385449018,-460.0,0.00020997,2]
[374626467,1753385449029,-460.0,0.00020997,2]
[374626468,1753385449038,-460.0,0.00020997,2]
[374626469,1753385449047,-618.23,0.00020997,2]
[374626470,1753385449057,-1124.45,0.00020997,2]
[374626471,1753385449066,-2445.06,0.00020997,2]
[374626472,1753385449076,-460.0,0.00020997,2]
[374626473,1753385449085,-4507.19,0.00020997,2]
[374626474,1753385449094,-460.0,0.00020997,2]
[374626475,1753385449104,-1287.86,0.00020997,2]
[374626476,1753385449115,-460.0,0.00020997,2]
[374626477,1753385449126,-2379.26,0.00020997,2]
[374626478,1753385449136,-460.0,0.00020997,2]
[374626479,1753385449145,-713.28,0.00020997,2]
[374626480,1753385449155,-460.0,0.00020997,2]
[374626481,1753385449166,-460.0,0.00020997,2]
[374626482,1753385449176,-2046.78,0.00020997,2]
[374626483,1753385449186,-1767.26,0.00020997,2]
[374626484,1753385449196,-1427.87,0.00020997,2]
[374626485,1753385449207,-1965.0,0.00020997,2]
[374626486,1753385449216,-970.59,0.00020997,2]
[374626487,1753385449226,-460.0,0.00020997,2]
[374626488,1753385449236,-741.14122082,0.00021,2]
[374626489,1753385449246,-17547.71758048,0.00021,3]
[374626490,1753385449256,-2125.09168061,0.00021118,2]
[374626491,1753385449265,-2798.30460564,0.00021141,4]
[374626492,1753385449275,-460.0,0.0002117,2]
[374626493,1753385449285,-359.33961868,0.0002117,2]
[374626494,1753385449294,-151.0,0.00021171,2]
[374626495,1753385449304,-687.48158231,0.00021171,2]
[374626496,1753385449313,-402.75722199,0.00021268,2]
[374626497,1753385449323,-1500.0,0.00021268,2]
[374626498,1753385449332,-1500.0,0.00021268,2]
[374626499,1753385449342,-1618.54253975,0.00021268,2]
[374626500,1753385449351,-1500.0,0.00021268,2]
[374626501,1753385449360,-1500.0,0.00021268,2]
[374626502,1753385449370,-1500.0,0.00021268,2]
[374626503,1753385449379,-1500.0,0.00021268,2]
[374626504,1753385449389,-3286.202235,0.00021269,2]
[374626505,1753385449398,-460.0,0.00021271,2]
[374626506,1753385449408,-713.76,0.00021271,2]
[374626507,1753385449417,-460.0,0.00021271,2]
[374626508,1753385449427,-460.0,0.00021271,2]
[374626509,1753385449436,-431.14768298,0.00021271,2]
[374626510,1753385449446,-460.0,0.00021271,2]
[374626511,1753385449456,-460.0,0.00021271,2]
[374626512,1753385449466,-460.0,0.00021271,2]
[374626513,1753385449476,-460.0,0.00021271,2]
[374626514,1753385449485,-905.35,0.00021271,2]
[374626515,1753385449495,-460.0,0.00021271,2]
[374626516,1753385449504,-460.0,0.00021271,2]
[374626517,1753385449514,-460.0,0.00021271,2]
[374626518,1753385449523,-460.0,0.00021271,2]
[374626519,1753385449534,-460.0,0.00021271,2]
[374626520,1753385449543,-477.10130128,0.00021271,2]
[374626521,1753385449552,-460.0,0.00021271,2]
[374626522,1753385449562,-777.87,0.00021271,2]
[374626523,1753385449571,-460.0,0.00021271,2]
[374626524,1753385449581,-460.0,0.00021271,2]
[374626525,1753385449590,-460.0,0.00021271,2]
[374626526,1753385449599,-460.0,0.00021271,2]
[374626527,1753385449609,-460.0,0.00021271,2]
[374626528,1753385449618,-534.68,0.00021271,2]
[374626529,1753385449627,-460.0,0.00021271,2]
[374626530,1753385449637,-683.5,0.00021271,2]
[374626531,1753385449646,-460.0,0.00021271,2]
[374626532,1753385449655,-551.1,0.00021271,2]
[374626533,1753385449666,-1715.33,0.00021271,2]
[374626534,1753385449675,-460.0,0.00021271,2]
[374626535,1753385449685,-460.0,0.00021271,2]
[374626536,1753385449693,-783.45,0.00021271,2]
[374626537,1753385449703,-460.0,0.00021271,2]
[374626538,1753385449712,-776.79,0.00021271,2]
[374626539,1753385449722,-2564.74,0.00021271,2]
[374626540,1753385449731,-463.65,0.00021271,2]
[374626541,1753385449741,-460.0,0.00021271,2]
[374626542,1753385449751,-460.0,0.00021271,2]
[374626543,1753385449762,-572.73,0.00021271,2]
[374626544,1753385449773,-1157.22,0.00021271,2]
[374626545,1753385449783,-460.0,0.00021271,2]
[374626546,1753385449793,-646.9,0.00021271,2]
[374626547,1753385449803,-1765.12,0.00021271,2]
[374626548,1753385449812,-1892.27,0.00021271,2]
[374626549,1753385449823,-620.12,0.00021271,2]
[374626550,1753385449833,-751.65,0.00021271,2]
[374626551,1753385449843,-460.0,0.00021271,2]
[374626552,1753385449854,-915.11,0.00021271,2]
[374626553,1753385449863,-582.72,0.00021271,2]
[374626554,1753385449873,-549.37,0.00021271,2]
[374626555,1753385449882,-460.0,0.00021271,2]
[374626556,1753385449891,-460.0,0.00021271,2]
[374626557,1753385449900,-579.21,0.00021271,2]
[374626558,1753385449909,-504.21,0.00021271,2]
[374626559,1753385449919,-460.0,0.00021271,2]
[374626560,1753385449929,-766.2,0.00021271,2]
[374626561,1753385449938,-460.0,0.00021271,2]
[374626562,1753385449947,-556.18,0.00021271,2]
[374626563,1753385449957,-460.0,0.00021271,2]
[374626564,1753385449967,-962.62,0.00021271,2]
[374626565,1753385450064,-460.0,0.00021271,2]
[374626566,1753385450075,-460.0,0.00021271,2]
[374626567,1753385450086,-2148.38,0.00021271,2]
[374626568,1753385450097,-817.39,0.00021271,2]
[374626569,1753385450109,-460.0,0.00021271,2]
[374626570,1753385450126,-5357.72,0.00021271,2]
[374626571,1753385450136,-460.0,0.00021271,2]
[374626572,1753385450146,-754.21,0.00021271,2]
[374626573,1753385450155,-635.65,0.00021271,2]
[374626574,1753385450166,-460.0,0.00021271,2]
[374626575,1753385450175,-460.0,0.00021271,2]
[374626576,1753385450185,-728.76,0.00021271,2]
[374626577,1753385450197,-460.0,0.00021271,2]
[374626578,1753385450206,-460.0,0.00021271,2]
[374626579,1753385450216,-460.0,0.00021271,2]
[374626580,1753385450226,-618.23,0.00021271,2]
[374626581,1753385450235,-1124.45,0.00021271,2]
[374626582,1753385450245,-2445.06,0.00021271,2]
[374626583,1753385450254,-460.0,0.00021271,2]
[374626584,1753385450264,-4507.19,0.00021271,2]
[374626585,1753385450274,-439.45200128,0.00021271,2]
[374626586,1753385450285,-1287.86,0.00021271,2]
[374626587,1753385450294,-460.0,0.00021271,2]
[374626588,1753385450304,-2379.26,0.00021271,2]
[374626589,1753385450314,-460.0,0.00021271,2]
[374626590,1753385450323,-420.0,0.00021271,2]
[374626591,1753385450333,-420.0,0.00021271,2]
[374626592,1753385450343,-713.28,0.00021271,2]
[374626593,1753385450352,-460.0,0.00021271,2]
[374626594,1753385450362,-460.0,0.00021271,2]
[374626595,1753385450371,-2046.78,0.00021271,2]
[374626596,1753385450380,-1767.26,0.00021271,2]
[374626597,1753385450390,-1427.87,0.00021271,2]
[374626598,1753385450399,-1965.0,0.00021271,2]
[374626599,1753385450409,-970.59,0.00021271,2]
[374626600,1753385450418,-460.0,0.00021271,2]
[374626601,1753385450427,-2000.0,0.00021316,2]
[374626602,1753385450436,-260.0,0.00021317,2]
[374626603,1753385450446,-1001.487689,0.00021321,2]
[374626604,1753385450455,-2798.30460564,0.00021348,5]
[374626605,1753385450464,-500.0,0.00021357,2]
[374626606,1753385450474,-500.0,0.00021357,2]
[374626607,1753385450483,-1680.0,0.00021374,2]
[374626608,1753385450493,-1141.796,0.0002138,2]
[374626609,1753385450502,-355.55508519,0.0002138,2]
[374626610,1753385450512,-178.70934786,0.0002138,2]
[374626611,1753385450521,-1500.0,0.00021442,2]
[374626612,1753385450531,-460.0,0.00021444,2]
[374626613,1753385450540,-289.879289,0.00021452,2]
[374626614,1753385450549,-289.879289,0.00021452,2]
[374626615,1753385450559,-500.0,0.00021465,2]
[374626616,1753385450568,-505.53775134,0.00021465,2]
[374626617,1753385450578,-237.186942,0.00021545,2]
[374626618,1753385450587,-460.0,0.00021545,2]
[374626619,1753385450597,-713.76,0.00021545,2]
[374626620,1753385450606,-460.0,0.00021545,2]
[374626621,1753385450618,-460.0,0.00021545,2]
[374626622,1753385450628,-460.0,0.00021545,2]
[374626623,1753385450637,-460.0,0.00021545,2]
[374626624,1753385450649,-460.0,0.00021545,2]
[374626625,1753385450659,-460.0,0.00021545,2]
[374626626,1753385450669,-905.35,0.00021545,2]
[374626627,1753385450679,-460.0,0.00021545,2]
[374626628,1753385450689,-460.0,0.00021545,2]
[374626629,1753385450698,-460.0,0.00021545,2]
[374626630,1753385450708,-460.0,0.00021545,2]
[374626631,1753385450718,-460.0,0.00021545,2]
[374626632,1753385450727,-777.87,0.00021545,2]
[374626633,1753385450737,-460.0,0.00021545,2]
[374626634,1753385450748,-460.0,0.00021545,2]
[374626635,1753385450758,-460.0,0.00021545,2]
[374626636,1753385450768,-460.0,0.00021545,2]
[374626637,1753385450779,-534.68,0.00021545,2]
[374626638,1753385450789,-460.0,0.00021545,2]
[374626639,1753385450798,-683.5,0.00021545,2]
[374626640,1753385450809,-460.0,0.00021545,2]
[374626641,1753385450820,-1715.33,0.00021545,2]
[374626642,1753385450830,-460.0,0.00021545,2]
[374626643,1753385450841,-460.0,0.00021545,2]
[374626644,1753385450851,-551.1,0.00021545,2]
[374626645,1753385450862,-783.45,0.00021545,2]
[374626646,1753385450871,-460.0,0.00021545,2]
[374626647,1753385450882,-776.79,0.00021545,2]
[374626648,1753385450893,-2564.74,0.00021545,2]
[374626649,1753385450904,-463.65,0.00021545,2]
[374626650,1753385450916,-460.0,0.00021545,2]
[374626651,1753385450926,-460.0,0.00021545,2]
[374626652,1753385450939,-572.73,0.00021545,2]
[374626653,1753385450949,-1157.22,0.00021545,2]
[374626654,1753385450960,-460.0,0.00021545,2]
[374626655,1753385450971,-646.9,0.00021545,2]
[374626656,1753385450980,-1765.12,0.00021545,2]
[374626657,1753385450989,-1892.27,0.00021545,2]
[374626658,1753385450999,-620.12,0.00021545,2]
[374626659,1753385451008,-751.65,0.00021545,2]
[374626660,1753385451018,-460.0,0.00021545,2]
[374626661,1753385451027,-915.11,0.00021545,2]
[374626662,1753385451038,-549.37,0.00021545,2]
[374626663,1753385451048,-582.72,0.00021545,2]
[374626664,1753385451058,-460.0,0.00021545,2]
[374626665,1753385451069,-460.0,0.00021545,2]
[374626666,1753385451079,-579.21,0.00021545,2]
[374626667,1753385451088,-504.21,0.00021545,2]
[374626668,1753385451097,-460.0,0.00021545,2]
[374626669,1753385451107,-766.2,0.00021545,2]
[374626670,1753385451119,-460.0,0.00021545,2]
[374626671,1753385451128,-556.18,0.00021545,2]
[374626672,1753385451137,-460.0,0.00021545,2]
[374626673,1753385451147,-962.62,0.00021545,2]
[374626674,1753385451157,-460.0,0.00021545,2]
[374626675,1753385451166,-460.0,0.00021545,2]
[374626676,1753385451177,-2148.38,0.00021545,2]
[374626677,1753385451186,-817.39,0.00021545,2]
[374626678,1753385451197,-460.0,0.00021545,2]
[374626679,1753385451207,-5357.72,0.00021545,2]
[374626680,1753385451217,-460.0,0.00021545,2]
[374626681,1753385451226,-754.21,0.00021545,2]
[374626682,1753385451235,-635.65,0.00021545,2]
[374626683,1753385451245,-460.0,0.00021545,2]
[374626684,1753385451254,-460.0,0.00021545,2]
[374626685,1753385451264,-728.76,0.00021545,2]
[374626686,1753385451273,-460.0,0.00021545,2]
[374626687,1753385451284,-460.0,0.00021545,2]
[374626688,1753385451294,-460.0,0.00021545,2]
[374626689,1753385451304,-618.23,0.00021545,2]
[374626690,1753385451313,-1124.45,0.00021545,2]
[374626691,1753385451323,-2445.06,0.00021545,2]
[374626692,1753385451332,-460.0,0.00021545,2]
[374626693,1753385451341,-4507.19,0.00021545,2]
[374626694,1753385451350,-1287.86,0.00021545,2]
[374626695,1753385451360,-552.13696992,0.00021545,2]
[374626696,1753385451370,-2379.26,0.00021545,2]
[374626697,1753385451380,-460.0,0.00021545,2]
[374626698,1753385451389,-713.28,0.00021545,2]
[374626699,1753385451398,-460.0,0.00021545,2]
[374626700,1753385451407,-460.0,0.00021545,2]
[374626701,1753385451417,-2046.78,0.00021545,2]
[374626702,1753385451426,-1767.26,0.00021545,2]
[374626703,1753385451435,-1427.87,0.00021545,2]
[374626704,1753385451444,-1965.0,0.00021545,2]
[374626705,1753385451454,-970.59,0.00021545,2]
[374626706,1753385451464,-2798.30460564,0.00021555,5]
[374626707,1753385451474,-155.0,0.00021589,2]
[374626708,1753385451484,-199.886,0.00021589,2]
[374626709,1753385451495,-500.0,0.00021712,2]
[374626710,1753385451505,-151.0,0.00021712,2]
[374626711,1753385451515,-500.0,0.00021712,2]
[374626712,1753385451524,-151.0,0.00021712,2]
[374626713,1753385451535,-151.0,0.00021712,2]
[374626714,1753385451544,-500.0,0.00021712,2]
[374626715,1753385451553,-151.0,0.00021712,2]
[374626716,1753385451562,-151.0,0.00021712,2]
[374626717,1753385451571,-151.0,0.00021712,2]
[374626718,1753385451580,-25000.0,0.00021712,2]
[374626719,1753385451590,-515.71519755,0.00021712,2]
[374626720,1753385451599,-3801.642,0.00021712,2]
[374626721,1753385451609,-151.0,0.00021712,2]
[374626722,1753385451619,-151.0,0.00021712,2]
[374626723,1753385451628,-151.0,0.00021712,2]
[374626724,1753385451638,-151.0,0.00021712,2]
[374626725,1753385451647,-151.0,0.00021712,2]
[374626726,1753385451657,-151.0,0.00021712,2]
[374626727,1753385451667,-151.0,0.00021712,2]
[374626728,1753385451677,-151.0,0.00021712,2]
[374626729,1753385451686,-151.0,0.00021712,2]
[374626730,1753385451696,-151.0,0.00021712,2]
[374626731,1753385451705,-151.0,0.00021712,2]
[374626732,1753385451715,-151.0,0.00021712,2]
[374626733,1753385451725,-151.0,0.00021712,2]
[374626734,1753385451734,-17837.59225764,0.00021712,2]
[374626735,1753385451744,-151.0,0.00021712,2]
[374626736,1753385451754,-151.0,0.00021712,2]
[374626737,1753385451764,-151.0,0.00021712,2]
[374626738,1753385451773,-151.0,0.00021712,2]
[374626739,1753385451785,-151.0,0.00021712,2]
[374626740,1753385451795,-151.0,0.00021712,2]
[374626741,1753385451804,-151.0,0.00021712,2]
[374626742,1753385451814,-151.0,0.00021712,2]
[374626743,1753385451824,-151.0,0.00021712,2]
[374626744,1753385451834,-151.0,0.00021712,2]
[374626745,1753385451843,-199.88962101,0.00021712,2]
[374626746,1753385451852,-151.0,0.00021712,2]
[374626747,1753385451862,-151.0,0.00021712,2]
[374626748,1753385451872,-151.0,0.00021712,2]
[374626749,1753385451882,-151.0,0.00021712,2]
[374626750,1753385451891,-151.0,0.00021712,2]
[374626751,1753385451900,-151.0,0.00021712,2]
[374626752,1753385451910,-151.0,0.00021712,2]
[374626753,1753385451919,-151.0,0.00021712,2]
[374626754,1753385451929,-151.0,0.00021712,2]
[374626755,1753385451939,-151.0,0.00021712,2]
[374626756,1753385451948,-151.0,0.00021712,2]
[374626757,1753385451957,-151.0,0.00021712,2]
[374626758,1753385451967,-215.0738,0.00021712,2]
[374626759,1753385451976,-151.0,0.00021712,2]
[374626760,1753385452071,-151.0,0.00021712,2]
[374626761,1753385452080,-151.0,0.00021712,2]
[374626762,1753385452091,-151.0,0.00021712,2]
[374626763,1753385452102,-151.0,0.00021712,2]
[374626764,1753385452111,-151.0,0.00021712,2]
[374626765,1753385452125,-151.0,0.00021712,2]
[374626766,1753385452135,-151.0,0.00021712,2]
[374626767,1753385452145,-151.0,0.00021712,2]
[374626768,1753385452155,-151.0,0.00021712,2]
[374626769,1753385452165,-151.0,0.00021712,2]
[374626770,1753385452175,-151.0,0.00021712,2]
[374626771,1753385452186,-151.0,0.00021712,2]
[374626772,1753385452196,-151.0,0.00021712,2]
[374626773,1753385452206,-151.0,0.00021712,2]
[374626774,1753385452216,-151.0,0.00021712,2]
[374626775,1753385452225,-151.0,0.00021712,2]
[374626776,1753385452235,-151.0,0.00021712,2]
[374626777,1753385452245,-151.0,0.00021712,2]
[374626778,1753385452255,-151.0,0.00021712,2]
[374626779,1753385452264,-151.0,0.00021712,2]
[374626780,1753385452273,-151.0,0.00021712,2]
[374626781,1753385452286,-151.0,0.00021712,2]
[374626782,1753385452296,-151.0,0.00021712,2]
[374626783,1753385452305,-151.0,0.00021712,2]
[374626784,1753385452314,-151.0,0.00021712,2]
[374626785,1753385452324,-151.0,0.00021712,2]
[374626786,1753385452334,-151.0,0.00021712,2]
[374626787,1753385452343,-151.0,0.00021712,2]
[374626788,1753385452353,-151.0,0.00021712,2]
[374626789,1753385452363,-460.0,0.00021718,2]
[374626790,1753385452373,-877.72466876,0.00021739,2]
[374626791,1753385452383,-2798.30460564,0.00021762,5]
[374626792,1753385452392,-3942.302754,0.00021767,2]
[374626793,1753385452402,-1996.10722544,0.00021816,2]
[374626794,1753385452412,-1781.64775848,0.00021816,2]
[374626795,1753385452422,-2003.16684721,0.00021816,2]
[374626796,1753385452431,-2000.0,0.00021816,2]
[374626797,1753385452441,-500.0,0.00021816,2]
[374626798,1753385452451,-1500.0,0.00021816,2]
[374626799,1753385452461,-289.879289,0.00021819,2]
[374626800,1753385452471,-289.879289,0.00021819,2]
[374626801,1753385452480,-460.0,0.00021819,2]
[374626802,1753385452490,-713.76,0.00021819,2]
[374626803,1753385452500,-460.0,0.00021819,2]
[374626804,1753385452509,-482.90486842,0.00021819,2]
[374626805,1753385452519,-460.0,0.00021819,2]
[374626806,1753385452528,-460.0,0.00021819,2]
[374626807,1753385452539,-460.0,0.00021819,2]
[374626808,1753385452549,-460.0,0.00021819,2]
[374626809,1753385452558,-905.35,0.00021819,2]
[374626810,1753385452568,-460.0,0.00021819,2]
[374626811,1753385452580,-460.0,0.00021819,2]
[374626812,1753385452589,-460.0,0.00021819,2]
[374626813,1753385452599,-454.08857412,0.00021819,2]
[374626814,1753385452609,-460.0,0.00021819,2]
[374626815,1753385452618,-777.87,0.00021819,2]
[374626816,1753385452629,-460.0,0.00021819,2]
[374626817,1753385452638,-460.0,0.00021819,2]
[374626818,1753385452648,-460.0,0.00021819,2]
[374626819,1753385452658,-460.0,0.00021819,2]
[374626820,1753385452668,-534.68,0.00021819,2]
[374626821,1753385452678,-460.0,0.00021819,2]
[374626822,1753385452688,-683.5,0.00021819,2]
[374626823,1753385452699,-460.0,0.00021819,2]
[374626824,1753385452708,-1715.33,0.00021819,2]
[374626825,1753385452718,-460.0,0.00021819,2]
[374626826,1753385452728,-460.0,0.00021819,2]
[374626827,1753385452737,-551.1,0.00021819,2]
[374626828,1753385452747,-783.45,0.00021819,2]
[374626829,1753385452758,-776.79,0.00021819,2]
[374626830,1753385452768,-2564.74,0.00021819,2]
[374626831,1753385452777,-463.65,0.00021819,2]
[374626832,1753385452789,-460.0,0.00021819,2]
[374626833,1753385452799,-460.0,0.00021819,2]
[374626834,1753385452808,-572.73,0.00021819,2]
[374626835,1753385452817,-1157.22,0.00021819,2]
[374626836,1753385452827,-460.0,0.00021819,2]
[374626837,1753385452836,-646.9,0.00021819,2]
[374626838,1753385452845,-1765.12,0.00021819,2]
[374626839,1753385452854,-1892.27,0.00021819,2]
[374626840,1753385452863,-620.12,0.00021819,2]
[374626841,1753385452872,-751.65,0.00021819,2]
[374626842,1753385452881,-460.0,0.00021819,2]
[374626843,1753385452890,-915.11,0.00021819,2]
[374626844,1753385452900,-549.37,0.00021819,2]
[374626845,1753385452910,-582.72,0.00021819,2]
[374626846,1753385452921,-460.0,0.00021819,2]
[374626847,1753385452931,-460.0,0.00021819,2]